bitfinex/quotes_BTCUSD_20220213
["timestamp","ask_amount","ask_price","bid_price","bid_amount"]
[1644753719771,0.330542,42461.0,42458.0,0.01995867]
[1644753720171,0.330542,42459.0,42458.0,0.01995867]
[1644753720374,0.1,42459.0,42458.0,0.01995867]
[1644753720573,0.430542,42459.0,42458.0,0.01995867]
[1644753720773,0.1,42459.0,42458.0,0.01995867]
[1644753720973,0.430542,42459.0,42458.0,0.01995867]
[1644753721223,0.00162804,42460.0,42458.0,0.01995867]
[1644753721518,0.430542,42459.0,42458.0,0.01995867]
[1644753721719,0.1,42459.0,42458.0,0.01995867]
[1644753721918,0.430542,42459.0,42458.0,0.01995867]
[1644753722123,0.1,42459.0,42458.0,0.01995867]
[1644753722321,0.00162804,42460.0,42458.0,0.01995867]
[1644753722721,0.00162804,42460.0,42458.0,0.02584867]
[1644753722924,0.00162804,42460.0,42459.0,0.05]
[1644753723123,2.804e-05,42460.0,42459.0,0.05021279]
[1644753724521,0.55986426,42470.0,42459.0,0.00021279]
[1644753724728,0.330542,42469.0,42458.0,0.08473567]
[1644753724982,0.55986426,42470.0,42458.0,0.14362767]
[1644753725181,0.55986426,42470.0,42462.0,0.005889]
[1644753725381,0.39502804,42470.0,42462.0,0.005889]
[1644753725581,0.330542,42469.0,42462.0,0.00610179]
[1644753725782,0.1,42469.0,42462.0,0.00610179]
[1644753725982,0.330542,42468.0,42464.0,0.00049196]
[1644753726382,0.330542,42467.0,42464.0,0.00638096]
[1644753726785,0.330542,42467.0,42464.0,0.005889]
[1644753727185,0.330542,42467.0,42464.0,0.00610179]
[1644753727586,0.27597046,42470.0,42464.0,0.00610179]
[1644753727787,0.330542,42469.0,42464.0,0.00610179]
[1644753728186,0.330542,42468.0,42464.0,0.00659374]
[1644753728387,0.11371896,42461.0,42459.0,0.167768]
[1644753728587,0.11371896,42461.0,42460.0,0.0680224]
[1644753729021,0.11371896,42461.0,42460.0,0.1180224]
[1644753729420,0.11371896,42461.0,42460.0,0.0680224]
[1644753729823,0.11371896,42461.0,42459.0,0.123657]
[1644753730927,0.11371896,42461.0,42460.0,0.05]
[1644753732128,0.11371896,42461.0,42460.0,0.13682853]
[1644753732328,0.11371896,42461.0,42460.0,0.08682853]
[1644753733368,0.11371896,42461.0,42460.0,0.14571153]
[1644753733568,0.11371896,42461.0,42460.0,0.19571153]
[1644753736223,0.11371896,42461.0,42460.0,0.46526598]
[1644753737720,0.48651099,42471.0,42460.0,0.56526598]
[1644753737919,0.48651099,42471.0,42469.0,0.064763]
[1644753738723,0.48651099,42471.0,42470.0,0.27401287]
[1644753738919,0.48651099,42471.0,42470.0,0.57401287]
[1644753739118,0.48651099,42471.0,42470.0,0.27401287]
[1644753739321,0.48651099,42471.0,42470.0,0.08339676]
[1644753739523,0.48651099,42471.0,42470.0,0.32831283]
[1644753739967,0.48651099,42471.0,42470.0,0.62831283]
[1644753740167,0.16024852,42486.0,42471.0,1.05]
[1644753740373,0.16024852,42486.0,42481.0,0.05]
[1644753740569,0.24958845,42494.0,42481.0,0.05]
[1644753740570,0.19967076,42493.0,42481.0,0.05]
[1644753740767,0.16024852,42494.0,42483.0,0.05]
[1644753740768,0.19967076,42494.0,42483.0,0.05]
[1644753740967,0.44516372,42495.0,42484.0,0.06892937]
[1644753741169,0.19967076,42494.0,42481.0,0.3]
[1644753741370,0.08524444,42495.0,42477.0,0.19166983]
[1644753741371,0.19967076,42493.0,42478.0,0.3]
[1644753741568,0.19967076,42493.0,42481.0,0.058856]
[1644753741767,0.20016249,42492.0,42481.0,0.058856]
[1644753741969,0.19967076,42491.0,42480.0,0.011772]
[1644753742169,0.19967076,42489.0,42480.0,0.0989371]
[1644753742367,0.19967076,42489.0,42480.0,0.1577951]
[1644753742569,0.19967076,42490.0,42481.0,0.058856]
[1644753742769,0.00049177,42487.0,42481.0,0.058856]
[1644753742972,0.00049177,42487.0,42483.0,0.005886]
[1644753743821,0.24958845,42494.0,42483.0,0.005886]
[1644753743822,0.19967076,42491.0,42483.0,0.005886]
[1644753744022,0.00049176,42487.0,42483.0,0.28537857]
[1644753744225,0.00049176,42487.0,42484.0,0.2646978]
[1644753744824,0.19967076,42493.0,42484.0,0.2646978]
[1644753745025,0.19967076,42495.0,42486.0,0.07062]
[1644753745224,0.19967076,42495.0,42487.0,0.35256863]
[1644753745225,0.00049176,42488.0,42487.0,0.35256863]
[1644753745423,0.00049176,42488.0,42487.0,0.08878043]
[1644753746022,0.2546336,42494.0,42487.0,0.08878043]
[1644753746224,0.330542,42492.0,42487.0,0.08878043]
[1644753746425,0.00049174,42490.0,42486.0,0.01177]
[1644753747225,0.66857076,42497.0,42486.0,0.07062]
[1644753747477,0.00049174,42490.0,42488.0,0.005885]
[1644753748281,0.00049174,42490.0,42489.0,0.23527483]
[1644753748474,0.19967076,42500.0,42489.0,0.77639653]
[1644753748675,0.5424,42502.0,42493.0,0.058839]
[1644753748676,0.19967076,42501.0,42493.0,0.058839]
[1644753749079,0.5424,42502.0,42493.0,0.058839]
[1644753749476,0.5424,42502.0,42497.0,0.06450345]
[1644753749676,0.5424,42502.0,42497.0,0.07038745]
[1644753749876,0.00049167,42500.0,42497.0,0.07038745]
[1644753750477,0.330542,42499.0,42497.0,0.005884]
[1644753750782,0.00049167,42500.0,42497.0,0.005884]
[1644753750980,0.19967076,42505.0,42497.0,0.005884]
[1644753751226,0.00049167,42500.0,42497.0,0.005884]
[1644753751920,0.00049167,42500.0,42498.0,0.08291137]
[1644753752120,0.113,42508.0,42500.0,0.005884]
[1644753752322,0.75986162,42509.0,42500.0,0.005884]
[1644753752323,0.00049166,42501.0,42500.0,0.005884]
[1644753752921,0.00049166,42501.0,42500.0,0.26704009]
[1644753753326,0.6965,42509.0,42500.0,0.005884]
[1644753753524,0.00049165,42503.0,42500.0,0.064715]
[1644753753725,0.00049165,42503.0,42500.0,0.005884]
[1644753753924,0.330542,42501.0,42500.0,0.005884]
[1644753754125,0.00049165,42503.0,42500.0,0.005884]
[1644753754526,0.6965,42509.0,42500.0,0.005884]
[1644753754726,0.00049164,42504.0,42500.0,0.07884224]
[1644753754966,0.00049164,42504.0,42500.0,0.005884]
[1644753755767,0.330542,42508.0,42500.0,0.005884]
[1644753755971,0.6965,42509.0,42500.0,0.005884]
[1644753755972,0.00049163,42504.0,42500.0,0.005884]
[1644753756171,0.00049163,42504.0,42500.0,0.26436579]
[1644753756971,0.330542,42508.0,42500.0,0.005884]
[1644753757171,0.00049163,42504.0,42500.0,0.005884]
[1644753758171,0.330594,42508.0,42500.0,0.005884]
[1644753758371,0.76907398,42509.0,42496.0,0.058836]
[1644753758372,0.00049163,42504.0,42496.0,0.058836]
[1644753758826,0.00049163,42504.0,42496.0,0.058835]
[1644753759025,0.330594,42503.0,42496.0,0.058835]
[1644753759327,0.27093829,42507.0,42496.0,0.058835]
[1644753759525,0.00049165,42502.0,42496.0,0.058835]
[1644753759924,0.00049165,42502.0,42498.0,0.058834]
[1644753760524,0.6965,42509.0,42498.0,0.058834]
[1644753760725,0.00049165,42502.0,42497.0,0.058835]
[1644753761325,0.00049165,42502.0,42500.0,0.005884]
[1644753761725,0.27710834,42507.0,42500.0,0.005884]
[1644753761925,0.00049164,42503.0,42500.0,0.005884]
[1644753762885,0.27710834,42507.0,42500.0,0.005884]
[1644753763085,0.00049164,42504.0,42500.0,0.005884]
[1644753764086,0.330594,42503.0,42500.0,0.005884]
[1644753764287,0.00049163,42504.0,42500.0,0.005884]
[1644753764685,0.330594,42503.0,42500.0,0.005884]
[1644753765289,1.02753744,42509.0,42500.0,0.005884]
[1644753765487,0.00049164,42504.0,42500.0,0.005884]
[1644753766087,0.330594,42503.0,42500.0,0.005884]
[1644753766331,0.00049164,42504.0,42500.0,0.005884]
[1644753766531,0.158836,42508.0,42500.0,0.005884]
[1644753766729,0.00049164,42504.0,42500.0,0.005884]
[1644753767330,0.330594,42503.0,42500.0,0.005884]
[1644753767933,0.00049164,42504.0,42500.0,0.005884]
[1644753768932,0.1,42508.0,42500.0,0.005884]
[1644753769130,0.00049163,42504.0,42500.0,0.005884]
[1644753769529,0.00049163,42504.0,42501.0,0.005261]
[1644753769731,0.00049163,42504.0,42501.0,0.005883]
[1644753769976,0.00049163,42504.0,42498.0,0.011767]
[1644753770176,0.6965,42509.0,42505.0,0.08973016]
[1644753770377,0.93922323,42509.0,42498.0,0.011767]
[1644753770580,0.27185633,42508.0,42499.0,0.058832]
[1644753770779,0.27102995,42508.0,42501.0,0.005884]
[1644753771580,0.00049162,42507.0,42501.0,0.005884]
[1644753772580,1.06732338,42509.0,42501.0,0.005884]
[1644753772879,0.00049162,42506.0,42501.0,0.005884]
[1644753773818,1.12615838,42509.0,42501.0,0.005884]
[1644753774019,0.00049162,42506.0,42502.0,0.005257]
[1644753774229,0.00049162,42506.0,42502.0,0.011141]
[1644753774420,0.00049162,42506.0,42503.0,0.005257]
[1644753775021,0.21,42509.0,42504.0,0.55655195]
[1644753775228,0.00249118,42507.0,42506.0,0.058814]
[1644753775421,0.00249118,42507.0,42506.0,0.364067]
[1644753776020,0.00249118,42507.0,42506.0,0.064067]
[1644753776223,0.00199956,42507.0,42506.0,0.064067]
[1644753776423,0.00199956,42507.0,42506.0,0.364067]
[1644753776620,0.00199956,42507.0,42506.0,0.064067]
[1644753777475,0.00199956,42507.0,42506.0,0.33837867]
[1644753780278,0.00199956,42507.0,42506.0,0.34600933]
[1644753780478,0.2104916,42509.0,42506.0,0.41070633]
[1644753780681,0.2104916,42509.0,42507.0,0.064065]
[1644753780881,0.21,42509.0,42508.0,0.28065741]
[1644753781523,0.21,42509.0,42508.0,0.51765493]
[1644753783026,0.21,42509.0,42508.0,0.28065741]
[1644753785175,0.21,42509.0,42508.0,0.28238277]
[1644753785975,0.21,42509.0,42508.0,0.33238277]
[1644753786475,0.21,42509.0,42508.0,0.28238277]
[1644753788078,0.21,42509.0,42508.0,0.38238277]
[1644753788480,0.09266343,42507.0,42506.0,0.06644566]
[1644753789326,0.09266343,42507.0,42506.0,0.12525366]
[1644753790127,0.09266343,42507.0,42506.0,0.22525366]
[1644753790326,0.27916666,42521.0,42506.0,0.22525366]
[1644753790327,0.00024317,42515.0,42508.0,1.05]
[1644753790533,0.00024317,42516.0,42510.0,0.058803]
[1644753790736,0.3,42524.0,42512.0,1.245]
[1644753790737,0.00024317,42518.0,42512.0,1.245]
[1644753790931,0.00024317,42518.0,42512.0,0.1]
[1644753791131,0.00024317,42523.0,42512.0,0.2]
[1644753791328,0.00024317,42518.0,42516.0,0.24215111]
[1644753791532,0.00024317,42522.0,42517.0,0.40727261]
[1644753791729,0.01024317,42519.0,42517.0,0.40727261]
[1644753791930,0.01017138,42519.0,42517.0,0.40727261]
[1644753792586,0.01017138,42519.0,42517.0,0.51606561]
[1644753792781,0.01017138,42519.0,42518.0,0.29392013]
[1644753792983,0.01,42519.0,42518.0,0.29392013]
[1644753795385,0.01099557,42519.0,42518.0,0.29392013]
[1644753800381,0.00046899,42521.0,42520.0,0.058789]
[1644753800582,0.00046899,42521.0,42520.0,0.66024596]
[1644753800583,0.00071216,42521.0,42520.0,0.66024596]
[1644753800777,0.01,42529.0,42520.0,0.66024596]
[1644753800778,0.00024317,42527.0,42520.0,0.71024596]
[1644753800977,0.00024317,42528.0,42521.0,1.167563]
[1644753801177,0.01,42529.0,42523.0,0.05]
[1644753801381,0.01,42529.0,42527.0,0.12351275]
[1644753801579,0.01,42529.0,42528.0,0.29940353]
[1644753805121,0.01,42529.0,42528.0,0.39940353]
[1644753805722,0.01,42529.0,42528.0,0.40434669]
[1644753805925,0.00070503,42531.0,42530.0,0.058775]
[1644753806124,0.00024317,42537.0,42530.0,0.44680887]
[1644753806323,0.01,42539.0,42530.0,0.58803387]
[1644753806324,0.00047443,42531.0,42530.0,0.58803387]
[1644753807130,0.00047443,42531.0,42530.0,0.81036741]
[1644753807326,0.00024317,42537.0,42530.0,0.92791141]
[1644753807575,0.00047442,42533.0,42532.0,0.058771]
[1644753807772,0.00047442,42533.0,42532.0,0.37815619]
[1644753807973,0.00047442,42533.0,42532.0,0.42815619]
[1644753808179,0.00047442,42533.0,42532.0,0.52815619]
[1644753808575,0.01189738,42539.0,42534.0,0.058765]
[1644753808576,0.00024317,42538.0,42534.0,0.058765]
[1644753808774,0.01,42539.0,42536.0,0.08608343]
[1644753808978,0.00024374,42538.0,42536.0,0.08608343]
[1644753809177,0.01,42539.0,42537.0,0.28200934]
[1644753809376,0.01024374,42539.0,42537.0,0.33200934]
[1644753809672,0.01024374,42539.0,42538.0,0.29041287]
[1644753809673,0.01,42539.0,42538.0,0.29041287]
[1644753809874,0.01,42539.0,42538.0,0.34041287]
[1644753810274,0.01,42539.0,42538.0,0.49917687]
[1644753811726,0.01,42539.0,42538.0,0.63997687]
[1644753812527,0.01,42539.0,42538.0,0.249564]
[1644753812726,0.00041364,42541.0,42540.0,0.25062192]
[1644753812929,0.2,42545.0,42540.0,0.30938192]
[1644753812930,0.19041364,42545.0,42540.0,0.30938192]
[1644753813127,0.19041364,42545.0,42540.0,0.46814092]
[1644753813530,0.19041364,42545.0,42540.0,0.217519]
[1644753813827,0.19041364,42545.0,42544.0,0.12244795]
[1644753814027,0.19041364,42545.0,42544.0,0.058763]
[1644753814329,0.19041364,42545.0,42540.0,0.167519]
[1644753814633,0.19041364,42545.0,42530.0,0.72233354]
[1644753814634,0.3,42544.0,42530.0,0.72233354]
[1644753814834,0.3,42544.0,42532.0,0.058783]
[1644753814835,0.358785,42544.0,42532.0,0.058783]
[1644753815081,0.358785,42544.0,42530.0,0.22233354]
[1644753815082,0.07192055,42538.0,42533.0,0.058781]
[1644753815282,0.3,42544.0,42533.0,0.058781]
[1644753815886,0.0002439,42544.0,42533.0,0.058781]
[1644753816081,0.19041364,42545.0,42534.0,0.058782]
[1644753816382,0.0002439,42544.0,42536.0,0.12849313]
[1644753816682,0.19041364,42545.0,42536.0,0.12849313]
[1644753816883,0.0002439,42544.0,42536.0,0.12849313]
[1644753817082,0.19041364,42545.0,42538.0,0.05877]
[1644753817282,0.27164858,42544.0,42538.0,0.05877]
[1644753817484,0.19065754,42545.0,42538.0,0.117543]
[1644753817685,0.0002439,42544.0,42538.0,0.058773]
[1644753817883,0.19065754,42545.0,42538.0,0.058773]
[1644753818083,0.0002439,42544.0,42538.0,0.058773]
[1644753818285,0.19041364,42545.0,42538.0,0.058773]
[1644753818488,0.11995539,42533.0,42529.0,0.03472877]
[1644753818730,0.11995539,42533.0,42531.0,0.07570484]
[1644753819325,0.11995539,42533.0,42531.0,0.18228879]
[1644753819528,0.11995539,42533.0,42531.0,0.35010525]
[1644753819926,0.11995539,42533.0,42531.0,0.45010525]
[1644753820327,0.11995539,42533.0,42532.0,0.30910864]
[1644753820530,0.11995539,42533.0,42532.0,1.55410864]
[1644753820730,0.0002439,42539.0,42533.0,1.05]
[1644753820928,0.0002439,42535.0,42534.0,1.30376]
[1644753821133,0.0020025,42542.0,42536.0,0.058762]
[1644753821134,0.0002439,42541.0,42536.0,0.058762]
[1644753821428,0.0020025,42542.0,42539.0,0.07348204]
[1644753821429,0.0022464,42542.0,42539.0,0.07348204]
[1644753821627,0.0022464,42542.0,42537.0,0.37866492]
[1644753821628,0.0002439,42541.0,42537.0,0.37866492]
[1644753821828,0.0002439,42542.0,42537.0,0.37866492]
[1644753822028,0.0002439,42541.0,42537.0,0.37866492]
[1644753822230,0.00050065,42543.0,42537.0,0.37866492]
[1644753822474,0.0002439,42542.0,42537.0,0.37866492]
[1644753822676,0.00074455,42543.0,42537.0,0.37866492]
[1644753822875,0.0002439,42544.0,42541.0,0.07121714]
[1644753823076,0.19041364,42545.0,42541.0,0.07121714]
[1644753823276,0.00050065,42543.0,42541.0,0.07121714]
[1644753823877,0.00050065,42543.0,42541.0,0.12998114]
[1644753824082,0.0002439,42544.0,42541.0,0.12998114]
[1644753824283,0.19041364,42545.0,42541.0,0.12998114]
[1644753824481,0.00050064,42544.0,42541.0,0.12998114]
[1644753824881,0.00050064,42544.0,42542.0,0.058764]
[1644753825381,0.19065754,42545.0,42542.0,0.022076]
[1644753825584,0.19091428,42545.0,42542.0,0.022076]
[1644753826524,0.19041364,42545.0,42542.0,0.080844]
[1644753826826,0.19041364,42545.0,42543.0,0.058768]
[1644753831477,0.19041364,42545.0,42541.0,0.058772]
[1644753831672,0.19065754,42545.0,42541.0,0.058772]
[1644753832473,0.43763359,42545.0,42541.0,0.058772]
[1644753832873,0.43789033,42545.0,42541.0,0.058772]
[1644753833274,0.43789033,42545.0,42533.0,0.117548]
[1644753833275,0.3,42544.0,42533.0,0.117548]
[1644753833476,0.3,42544.0,42527.0,0.05]
[1644753833477,0.05,42542.0,42527.0,0.05]
[1644753833736,0.358785,42541.0,42527.0,0.05]
[1644753833925,0.358785,42541.0,42526.0,0.05879]
[1644753833926,0.05,42540.0,42526.0,0.05879]
[1644753834129,0.3,42541.0,42526.0,0.05879]
[1644753834130,0.4002439,42541.0,42526.0,0.05879]
[1644753834325,0.08044535,42536.0,42528.0,0.31008439]
[1644753834922,0.08044535,42536.0,42528.0,0.05879]
[1644753835529,0.3,42535.0,42528.0,0.05879]
[1644753835726,0.3002439,42535.0,42523.0,0.117584]
[1644753835928,0.3002439,42535.0,42521.0,0.22754404]
[1644753836126,0.07754086,42528.0,42521.0,0.22754404]
[1644753836425,0.07754086,42528.0,42519.0,0.117594]
[1644753836631,0.27160434,42527.0,42519.0,0.117594]
[1644753837228,0.27160434,42527.0,42518.0,0.0005009]
[1644753837477,0.07754086,42528.0,42521.0,0.25305032]
[1644753837680,0.0002439,42530.0,42521.0,0.25305032]
[1644753837876,0.31602851,42535.0,42521.0,0.25305032]
[1644753837877,0.0002439,42534.0,42521.0,0.25305032]
[1644753838078,0.31602851,42535.0,42521.0,0.45252429]
[1644753838079,0.0002439,42535.0,42521.0,0.45252429]
[1644753838275,0.0002439,42534.0,42521.0,0.45252429]
[1644753838475,0.29697513,42535.0,42523.0,0.058792]
[1644753838676,0.29697513,42535.0,42523.0,0.12724901]
[1644753838677,0.07028576,42532.0,42523.0,0.12724901]
[1644753838878,0.05,42530.0,42523.0,0.058792]
[1644753839078,0.05,42527.0,42518.0,0.00050089]
[1644753839778,0.0002439,42530.0,42514.0,0.4385599]
[1644753839779,0.117617,42528.0,42514.0,0.4385599]
[1644753839977,0.3,42527.0,42518.0,0.00050087]
[1644753840181,0.3002439,42530.0,42518.0,0.00050087]
[1644753840379,0.3,42530.0,42518.0,0.20029904]
[1644753840578,0.3,42530.0,42519.0,0.19979817]
[1644753840978,0.3,42530.0,42520.0,0.19979817]
[1644753841230,0.0002439,42531.0,42520.0,0.19979817]
[1644753841427,0.3844,42532.0,42520.0,0.19979817]
[1644753841627,0.3846439,42532.0,42520.0,0.19979817]
[1644753841829,0.07382851,42529.0,42520.0,0.19979817]
[1644753842029,0.07382851,42529.0,42520.0,0.058801]
[1644753842828,0.0002439,42531.0,42520.0,0.058801]
[1644753843032,0.3846439,42532.0,42524.0,0.058791]
[1644753843234,0.0002439,42531.0,42524.0,0.25858917]
[1644753843435,0.3844,42532.0,42527.0,0.03610375]
[1644753843631,0.0002439,42531.0,42527.0,0.19979817]
[1644753843831,0.0002439,42534.0,42526.0,0.19979817]
[1644753844031,0.0002439,42535.0,42534.0,0.08372149]
[1644753844233,0.08468291,42542.0,42535.0,0.058781]
[1644753844434,0.00024395,42541.0,42535.0,0.058781]
[1644753844633,0.00024395,42542.0,42535.0,0.058781]
[1644753845288,0.40074459,42543.0,42535.0,0.058781]
[1644753845485,0.00024395,42542.0,42534.0,0.08372149]
[1644753845687,0.40074459,42543.0,42530.0,0.20740863]
[1644753845886,0.00024395,42542.0,42530.0,0.20740863]
[1644753846088,0.40074459,42543.0,42530.0,0.20740863]
[1644753846284,0.00024395,42542.0,42530.0,0.20740863]
[1644753846485,0.10074459,42543.0,42533.0,0.058785]
[1644753846686,0.00024395,42542.0,42536.0,0.0880257]
[1644753846886,0.00074459,42543.0,42536.0,0.0880257]
[1644753847189,0.00024395,42542.0,42530.0,0.5247728]
[1644753847386,0.00074459,42543.0,42530.0,0.5247728]
[1644753847587,0.00024395,42542.0,42530.0,0.5247728]
[1644753847786,0.00074459,42543.0,42531.0,0.27938898]
[1644753847986,0.00024395,42542.0,42532.0,0.058784]
[1644753848186,0.00024395,42543.0,42535.0,0.08771157]
[1644753848386,0.00024395,42542.0,42535.0,0.08771157]
[1644753848588,0.04644449,42532.0,42531.0,0.35696444]
[1644753849431,0.04644449,42532.0,42531.0,0.61554361]
[1644753850330,0.04644449,42532.0,42531.0,0.41574544]
[1644753851132,0.02930134,42532.0,42531.0,0.41574544]
[1644753851332,0.01383134,42532.0,42531.0,0.615604]
[1644753852332,0.01383134,42532.0,42531.0,0.41574544]
[1644753852787,0.01383134,42532.0,42531.0,0.46574544]
[1644753852989,0.01383134,42532.0,42531.0,0.76549316]
[1644753853188,0.01383134,42532.0,42531.0,0.61574544]
[1644753853387,0.01383134,42532.0,42531.0,0.9154427]
[1644753853588,0.01383134,42532.0,42531.0,0.61574544]
[1644753853787,0.01383134,42532.0,42531.0,0.91551546]
[1644753853986,0.00024395,42540.0,42531.0,0.91551546]
[1644753854191,0.00024395,42538.0,42535.0,0.24980056]
[1644753854390,0.00024395,42538.0,42534.0,0.058768]
[1644753854391,0.00024395,42541.0,42537.0,0.24980056]
[1644753854591,0.00046472,42543.0,42540.0,0.19981908]
[1644753855191,0.00046472,42543.0,42541.0,0.23015147]
[1644753855390,0.00024395,42544.0,42541.0,0.33890847]
[1644753855591,0.19065759,42545.0,42542.0,0.108759]
[1644753855789,0.00013997,42544.0,42542.0,0.108759]
[1644753856446,0.00013997,42544.0,42542.0,0.33275076]
[1644753856645,0.19065759,42545.0,42542.0,0.33275076]
[1644753856844,0.19055246,42545.0,42542.0,0.33275076]
[1644753857042,0.19055246,42545.0,42543.0,0.07813606]
[1644753857243,0.19055246,42545.0,42543.0,0.13689506]
[1644753857849,0.19041364,42545.0,42543.0,0.13689506]
[1644753858647,0.19041364,42545.0,42544.0,0.26819066]
[1644753859049,0.19041364,42545.0,42544.0,0.38571166]
[1644753860082,0.19243483,42545.0,42544.0,0.38571166]
[1644753870493,0.19243483,42545.0,42543.0,0.117523]
[1644753871339,0.19243483,42545.0,42544.0,0.26504323]
[1644753872638,0.19243483,42545.0,42544.0,0.3346315]
[1644753873239,0.19243483,42545.0,42544.0,0.06958827]
[1644753874238,0.19243483,42545.0,42544.0,0.33531977]
[1644753875579,0.19243483,42545.0,42544.0,0.06958827]
[1644753877279,0.19233548,42545.0,42544.0,0.06958827]
[1644753878744,0.19233548,42545.0,42543.0,0.06314974]
[1644753879142,0.19233548,42545.0,42544.0,0.26725468]
[1644753880640,0.19233548,42545.0,42543.0,0.06314974]
[1644753881843,0.19233548,42545.0,42541.0,0.058779]
[1644753882043,0.19233548,42545.0,42539.0,0.117549]
[1644753883285,0.00046167,42544.0,42539.0,0.117549]
[1644753884287,0.19233548,42545.0,42539.0,0.117549]
[1644753884588,0.00046167,42544.0,42531.0,0.19981908]
[1644753884787,0.00046167,42544.0,42531.0,0.31739008]
[1644753884988,0.00046167,42544.0,42531.0,0.117571]
[1644753885188,0.00046167,42544.0,42531.0,0.31739008]
[1644753885387,0.19233548,42545.0,42532.0,0.19981908]
[1644753885787,0.19233548,42545.0,42535.0,0.058786]
[1644753885788,0.07957188,42537.0,42535.0,0.058786]
[1644753885987,0.00046163,42543.0,42535.0,0.058786]
[1644753886626,0.19233548,42545.0,42535.0,0.058786]
[1644753886829,0.00046165,42543.0,42535.0,0.058786]
[1644753887028,0.00046165,42543.0,42536.0,0.05878]
[1644753887226,0.0688961,42542.0,42538.0,0.058779]
[1644753887830,0.25072297,42539.0,42533.0,0.19981908]
[1644753888035,0.25072297,42539.0,42533.0,0.25860308]
[1644753888230,0.0688961,42542.0,42533.0,0.058784]
[1644753888430,0.00046166,42543.0,42534.0,0.058786]
[1644753889036,0.19233548,42545.0,42534.0,0.058786]
[1644753889232,0.00046164,42543.0,42534.0,0.058786]
[1644753889431,0.19366826,42543.0,42534.0,0.058786]
[1644753890076,0.19533982,42543.0,42536.0,0.058779]
[1644753890377,0.19487818,42543.0,42537.0,0.058781]
[1644753890579,0.19533982,42543.0,42537.0,0.058781]
[1644753890876,0.067516,42542.0,42537.0,0.058781]
[1644753891582,0.067516,42542.0,42538.0,0.058776]
[1644753892980,0.067516,42542.0,42538.0,0.117552]
[1644753893178,0.00213322,42543.0,42538.0,0.117552]
[1644753893378,0.00213322,42543.0,42542.0,0.22550854]
[1644753893834,0.00167156,42543.0,42542.0,0.22550854]
[1644753894339,0.00167156,42543.0,42542.0,0.30242953]
[1644753895333,0.00167156,42543.0,42542.0,0.22550854]
[1644753901829,0.00167156,42543.0,42542.0,0.29454521]
[1644753903030,0.00167156,42543.0,42542.0,0.22550854]
[1644753904031,0.00167156,42543.0,42541.0,0.058769]
[1644753908837,0.16033024,42545.0,42541.0,0.058769]
[1644753909038,0.16033024,42545.0,42541.0,0.117541]
[1644753909237,0.16033024,42545.0,42542.0,0.058772]
[1644753909638,0.16033024,42545.0,42540.0,0.19981908]
[1644753909838,0.16033024,42545.0,42539.0,0.19252817]
[1644753910238,0.00167156,42543.0,42539.0,0.19252817]
[1644753910636,0.00167156,42543.0,42537.0,0.19981908]
[1644753910839,0.00167156,42543.0,42538.0,0.058781]
[1644753911036,0.25966694,42543.0,42538.0,0.058781]
[1644753911436,0.31844994,42543.0,42537.0,0.19981908]
[1644753911639,0.08744616,42540.0,42537.0,0.19981908]
[1644753913682,0.25966694,42543.0,42536.0,0.25859908]
[1644753913884,0.25966694,42543.0,42537.0,0.19981908]
[1644753914284,0.25966694,42543.0,42537.0,0.25860108]
[1644753914586,0.00167156,42543.0,42537.0,0.31737808]
[1644753914784,0.00167156,42543.0,42537.0,0.25859608]
[1644753914986,0.00167156,42543.0,42538.0,0.19981908]
[1644753915384,0.00167156,42543.0,42538.0,0.25859408]
[1644753915585,0.00167156,42543.0,42539.0,0.19981908]
[1644753915784,0.07223939,42544.0,42539.0,0.19981908]
[1644753916836,0.07223939,42544.0,42539.0,0.19989523]
[1644753917033,0.16033024,42545.0,42541.0,0.058774]
[1644753917738,0.16033024,42545.0,42539.0,0.19989523]
[1644753918135,0.16033024,42545.0,42540.0,0.058777]
[1644753919634,0.16033024,42545.0,42538.0,0.26118338]
[1644753919635,0.26033024,42545.0,42538.0,0.26118338]
[1644753919835,0.26033024,42545.0,42538.0,0.20240238]
[1644753920582,0.16033024,42545.0,42538.0,0.19989523]
[1644753920784,0.16033024,42545.0,42540.0,0.058779]
[1644753924032,0.16033024,42545.0,42541.0,0.07421243]
[1644753925034,0.16033024,42545.0,42542.0,0.00250695]
[1644753926233,0.16033024,42545.0,42542.0,0.06128295]
[1644753928683,0.16033024,42545.0,42544.0,0.20783749]
[1644753928888,0.16033024,42545.0,42544.0,0.21465691]
[1644753929085,0.16033024,42545.0,42544.0,0.27341991]
[1644753929286,0.07305567,42545.0,42544.0,0.52331636]
[1644753929484,0.07305567,42545.0,42544.0,0.27341991]
[1644753929887,0.07305567,42545.0,42544.0,0.27592673]
[1644753930288,0.07305567,42545.0,42544.0,0.52326882]
[1644753931089,0.07305567,42545.0,42544.0,0.8363133]
[1644753931334,0.07305567,42545.0,42544.0,0.58646439]
[1644753933831,0.07305567,42545.0,42544.0,0.63646439]
[1644753935085,0.07305567,42545.0,42544.0,0.63897483]
[1644753936087,0.07305567,42545.0,42544.0,0.8887601]
[1644753942783,0.07305567,42545.0,42544.0,0.57571562]
[1644753942984,0.07305567,42545.0,42544.0,0.32593035]
[1644753943383,0.07305567,42545.0,42544.0,0.57566585]
[1644753944184,0.07305567,42545.0,42544.0,0.57566587]
[1644753944586,0.07305567,42545.0,42544.0,0.52566587]
[1644753944983,0.07305567,42545.0,42544.0,0.80598562]
[1644753949138,0.05309894,42545.0,42544.0,0.80598562]
[1644753950280,0.05309894,42545.0,42544.0,0.5562501]
[1644753951292,0.05309894,42545.0,42544.0,0.6062501]
[1644753952091,0.05309894,42545.0,42544.0,0.5562501]
[1644753952487,0.05309894,42545.0,42544.0,0.6062501]
[1644753955537,0.05309894,42545.0,42544.0,0.60544335]
[1644753960288,0.05309894,42545.0,42544.0,0.39078644]
[1644753960692,0.05309894,42545.0,42544.0,0.06046669]
[1644753970735,0.05303801,42545.0,42544.0,0.06046669]
[1644753972996,0.05303801,42545.0,42544.0,0.31021251]
[1644753986435,0.0331024,42545.0,42544.0,0.31021251]
[1644753986636,0.0331024,42545.0,42544.0,0.31036915]
[1644753991434,0.01421488,42545.0,42544.0,0.31036915]
[1644753995188,0.01421488,42545.0,42544.0,0.06046669]
[1644753995589,0.01421488,42545.0,42544.0,0.31037659]
[1644753996391,0.01421488,42545.0,42544.0,0.31037878]
[1644753997291,0.01421488,42545.0,42544.0,0.06046669]
[1644754001535,0.01421488,42545.0,42544.0,0.31040765]
[1644754003600,0.01421488,42545.0,42544.0,0.06046669]
[1644754004802,0.01421488,42545.0,42544.0,0.36034458]